fUSD/lending_fUSD_20240814
["ID","MTS","AMOUNT","RATE_DAILY","PERIOD"]
[334822369,1723603954510,-5039.17,0.0001589,2]
[334822370,1723603954520,-504.69715642,0.0001589,2]
[334822371,1723603954530,-500.0,0.0001589,2]
[334822372,1723603954540,-2211.11,0.0001589,2]
[334822373,1723603954550,-886.37,0.0001589,2]
[334822374,1723603954561,-871.5,0.0001589,2]
[334822375,1723603954571,-500.0,0.0001589,2]
[334822376,1723603954581,-500.0,0.0001589,2]
[334822377,1723603954591,-1663.19,0.0001589,2]
[334822378,1723603954601,-500.0,0.0001589,2]
[334822379,1723603954611,-5519.37,0.0001589,2]
[334822380,1723603954621,-548.95,0.0001589,2]
[334822381,1723603954631,-1172.03,0.0001589,2]
[334822382,1723603954641,-500.0,0.0001589,2]
[334822383,1723603954651,-500.0,0.0001589,2]
[334822384,1723603954660,-500.0,0.0001589,2]
[334822385,1723603954671,-531.05403004,0.0001589,2]
[334822386,1723603954681,-1026.14,0.0001589,2]
[334822387,1723603954690,-2558.78,0.0001589,2]
[334822388,1723603954700,-6089.56,0.0001589,2]
[334822389,1723603954711,-500.0,0.0001589,2]
[334822390,1723603954721,-721.59,0.0001589,2]
[334822391,1723603954731,-652.17,0.0001589,2]
[334822392,1723603954740,-1052.72,0.0001589,2]
[334822393,1723603954750,-500.0,0.0001589,2]
[334822394,1723603954759,-500.0,0.0001589,2]
[334822395,1723603954769,-1637.63,0.0001589,2]
[334822396,1723603954778,-541.96,0.0001589,2]
[334822397,1723603954788,-3044.5,0.0001589,2]
[334822398,1723603954798,-2262.05,0.0001589,2]
[334822399,1723603954807,-500.0,0.0001589,2]
[334822400,1723603954817,-4734.54,0.0001589,2]
[334822401,1723603954826,-500.0,0.0001589,2]
[334822402,1723603954836,-6651.45,0.0001589,2]
[334822403,1723603954845,-1697.19,0.0001589,2]
[334822404,1723603954855,-500.0,0.0001589,2]
[334822405,1723603954864,-500.0,0.0001589,2]
[334822406,1723603954874,-2800.16,0.0001589,2]
[334822407,1723603954883,-500.0,0.0001589,2]
[334822408,1723603954893,-500.0,0.0001589,2]
[334822409,1723603954902,-1932.52,0.0001589,2]
[334822410,1723603954911,-3412.59,0.0001589,2]
[334822411,1723603954922,-500.0,0.0001589,2]
[334822412,1723603954932,-1562.52,0.0001589,2]
[334822413,1723603954941,-1904.81,0.0001589,2]
[334822414,1723603954950,-3403.14,0.0001589,2]
[334822415,1723603954960,-6160.63,0.0001589,2]
[334822416,1723603954970,-992.23,0.0001589,2]
[334822417,1723603954983,-557.37,0.0001589,2]
[334822418,1723603954992,-500.0,0.0001589,2]
[334822419,1723603955002,-1080.99,0.0001589,2]
[334822420,1723603955012,-500.0,0.0001589,2]
[334822421,1723603955022,-551.36754223,0.0001589,2]
[334822422,1723603955032,-500.0,0.0001589,2]
[334822423,1723603955041,-3809.18,0.0001589,2]
[334822424,1723603955054,-519.68,0.0001589,2]
[334822425,1723603955064,-502.67067097,0.0001589,2]
[334822426,1723603955074,-500.0,0.0001589,2]
[334822427,1723603955084,-3420.81,0.0001589,2]
[334822428,1723603955094,-2546.25,0.0001589,2]
[334822429,1723603955105,-500.0,0.0001589,2]
[334822430,1723603955115,-3109.12,0.0001589,2]
[334822431,1723603955126,-500.0,0.0001589,2]
[334822432,1723603955136,-610.77,0.0001589,2]
[334822433,1723603955146,-2747.79,0.0001589,2]
[334822434,1723603955156,-1627.16,0.0001589,2]
[334822435,1723603955167,-500.0,0.0001589,2]
[334822436,1723603955177,-500.0,0.0001589,2]
[334822437,1723603955187,-505.10287477,0.0001589,2]
[334822438,1723603955197,-925.42,0.0001589,2]
[334822439,1723603955207,-500.0,0.0001589,2]
[334822440,1723603955216,-1362.27,0.0001589,2]
[334822441,1723603955226,-737.98,0.0001589,2]
[334822442,1723603955236,-503.23583733,0.0001589,2]
[334822443,1723603955246,-1014.28,0.0001589,2]
[334822444,1723603955256,-1635.4,0.0001589,2]
[334822445,1723603955266,-500.0,0.0001589,2]
[334822446,1723603955276,-1754.72,0.0001589,2]
[334822447,1723603955286,-500.0,0.0001589,2]
[334822448,1723603955296,-605.16057386,0.0001589,2]
[334822449,1723603955306,-500.0,0.0001589,2]
[334822450,1723603955316,-500.0,0.0001589,2]
[334822451,1723603955326,-684.39,0.0001589,2]
[334822452,1723603955335,-2042.47,0.0001589,2]
[334822453,1723603955345,-508.13421567,0.0001589,2]
[334822454,1723603955355,-2970.97,0.0001589,2]
[334822455,1723603955364,-500.0,0.0001589,2]
[334822456,1723603955374,-500.0,0.0001589,2]
[334822457,1723603955384,-500.0,0.0001589,2]
[334822458,1723603955394,-1135.15,0.0001589,2]
[334822459,1723603955405,-759.05,0.0001589,2]
[334822460,1723603955414,-578.01,0.0001589,2]
[334822461,1723603955426,-541.34,0.0001589,2]
[334822462,1723603955436,-542.71,0.0001589,2]
[334822463,1723603955446,-500.0,0.0001589,2]
[334822464,1723603955456,-4312.18,0.0001589,2]
[334822465,1723603955466,-500.0,0.0001589,2]
[334822466,1723603955476,-993.05,0.0001589,2]
[334822467,1723603955487,-500.0,0.0001589,2]
[334822468,1723603955496,-1593.35,0.0001589,2]
[334822469,1723603955507,-500.0,0.0001589,2]
[334822470,1723603955517,-500.0,0.0001589,2]
[334822471,1723603955527,-500.0,0.0001589,2]
[334822472,1723603955537,-578.58,0.0001589,2]
[334822473,1723603955547,-563.35,0.0001589,2]
[334822474,1723603955557,-1809.06,0.0001589,2]
[334822475,1723603955567,-1425.37,0.0001589,2]
[334822476,1723603955577,-505.93457895,0.0001589,2]
[334822477,1723603955586,-2471.25,0.0001589,2]
[334822478,1723603955596,-561.36,0.0001589,2]
[334822479,1723603955605,-1970.05,0.0001589,2]
[334822480,1723603955614,-500.0,0.0001589,2]
[334822481,1723603955624,-500.0,0.0001589,2]
[334822482,1723603955633,-500.0,0.0001589,2]
[334822483,1723603955642,-3890.5,0.0001589,2]
[334822484,1723603955653,-500.0,0.0001589,2]
[334822485,1723603955663,-500.0,0.0001589,2]
[334822486,1723603955674,-1901.09,0.0001589,2]
[334822487,1723603955684,-2311.16,0.0001589,2]
[334822488,1723603955695,-500.0,0.0001589,2]
[334822489,1723603955704,-500.0,0.0001589,2]
[334822490,1723603955715,-816.06,0.0001589,2]
[334822491,1723603955724,-500.0,0.0001589,2]
[334822492,1723603955734,-500.0,0.0001589,2]
[334822493,1723603955743,-506.49,0.0001589,2]
[334822494,1723603955753,-829.82,0.0001589,2]
[334822495,1723603955762,-3657.2,0.0001589,2]
[334822496,1723603955771,-340.87013868,0.0001589,2]
[334822497,1723603955781,-2053.68,0.0001589,2]
[334822498,1723603955791,-500.0,0.0001589,2]
[334822499,1723603955800,-500.0,0.0001589,2]
[334822500,1723603955809,-500.0,0.0001589,2]
[334822501,1723603955818,-500.0,0.0001589,2]
[334822502,1723603955828,-500.0,0.0001589,2]
[334822503,1723603955838,-500.0,0.0001589,2]
[334822504,1723603955848,-718.17,0.0001589,2]
[334822505,1723603955857,-1456.02,0.0001589,2]
[334822506,1723603955867,-645.37,0.0001589,2]
[334822507,1723603955876,-2925.6,0.0001589,2]
[334822508,1723603955885,-500.0,0.0001589,2]
[334822509,1723603955895,-500.0,0.0001589,2]
[334822510,1723603955904,-500.0,0.0001589,2]
[334822511,1723603955914,-500.0,0.0001589,2]
[334822512,1723603955924,-813.54,0.0001589,2]
[334822513,1723603955934,-500.0,0.0001589,2]
[334822514,1723603955943,-500.0,0.0001589,2]
[334822515,1723603955952,-702.46,0.0001589,2]
[334822516,1723603955961,-302.86353064,0.0001589,2]
[334822517,1723603955974,-1871.96,0.0001589,2]
[334822518,1723603955984,-500.0,0.0001589,2]
[334822519,1723603955993,-2920.7,0.0001589,2]
[334822520,1723603956003,-1199.21,0.0001589,2]
[334822521,1723603956013,-839.44,0.0001589,2]
[334822522,1723603956023,-3062.35,0.0001589,2]
[334822523,1723603956032,-500.0,0.0001589,2]
[334822524,1723603956041,-1954.93,0.0001589,2]
[334822525,1723603956051,-523.74,0.0001589,2]
[334822526,1723603956061,-556.57,0.0001589,2]
[334822527,1723603956071,-500.0,0.0001589,2]
[334822528,1723603956081,-500.0,0.0001589,2]
[334822529,1723603956090,-686.81,0.0001589,2]
[334822530,1723603956100,-765.71,0.0001589,2]
[334822531,1723603956109,-500.0,0.0001589,2]
[334822532,1723603956119,-500.0,0.0001589,2]
[334822533,1723603956129,-1285.93,0.0001589,2]
[334822534,1723603956138,-1141.42,0.0001589,2]
[334822535,1723603956147,-500.0,0.0001589,2]
[334822536,1723603956157,-1795.87,0.0001589,2]
[334822537,1723603956166,-500.0,0.0001589,2]
[334822538,1723603956177,-510.77,0.0001589,2]
[334822539,1723603956186,-500.0,0.0001589,2]
[334822540,1723603956195,-862.78,0.0001589,2]
[334822541,1723603956204,-500.0,0.0001589,2]
[334822542,1723603956213,-263.61354108,0.0001589,2]
[334822543,1723603956223,-500.0,0.0001589,2]
[334822544,1723603956233,-2686.07,0.0001589,2]
[334822545,1723603956243,-506.34014553,0.0001589,2]
[334822546,1723603956252,-500.0,0.0001589,2]
[334822547,1723603956261,-614.38,0.0001589,2]
[334822548,1723603956271,-4160.62,0.0001589,2]
[334822549,1723603956280,-500.0,0.0001589,2]
[334822550,1723603956290,-667.7,0.0001589,2]
[334822551,1723603956299,-500.0,0.0001589,2]
[334822552,1723603956612,-500.0,0.0001589,2]
[334822553,1723603956626,-500.0,0.0001589,2]
[334822554,1723603956635,-500.0,0.0001589,2]
[334822555,1723603956645,-500.0,0.0001589,2]
[334822556,1723603956654,-1879.0,0.0001589,2]
[334822557,1723603956663,-746.14,0.0001589,2]
[334822558,1723603956674,-3343.86,0.0001589,2]
[334822559,1723603956684,-500.0,0.0001589,2]
[334822560,1723603956693,-500.0,0.0001589,2]
[334822561,1723603956703,-500.0,0.0001589,2]
[334822562,1723603956713,-500.0,0.0001589,2]
[334822563,1723603956723,-500.0,0.0001589,2]
[334822564,1723603956732,-500.0,0.0001589,2]
[334822565,1723603956742,-504.40455979,0.0001589,2]
[334822566,1723603956751,-500.0,0.0001589,2]
[334822567,1723603956760,-2290.46,0.0001589,2]
[334822568,1723603956770,-4072.54,0.0001589,2]
[334822569,1723603956779,-500.0,0.0001589,2]
[334822570,1723603956789,-801.76,0.0001589,2]
[334822571,1723603956798,-500.0,0.0001589,2]
[334822572,1723603956808,-626.44,0.0001589,2]
[334822573,1723603956817,-1509.4,0.0001589,2]
[334822574,1723603956827,-2014.71,0.0001589,2]
[334822575,1723603956837,-500.0,0.0001589,2]
[334822576,1723603956846,-500.0,0.0001589,2]
[334822577,1723603956856,-500.0,0.0001589,2]
[334822578,1723603956866,-1656.17,0.0001589,2]
[334822579,1723603956875,-3222.79,0.0001589,2]
[334822580,1723603956884,-1749.15,0.0001589,2]
[334822581,1723603956894,-500.0,0.0001589,2]
[334822582,1723603956904,-500.0,0.0001589,2]
[334822583,1723603956914,-500.0,0.0001589,2]
[334822584,1723603956925,-500.0,0.0001589,2]
[334822585,1723603956935,-706.26,0.0001589,2]
[334822586,1723603956946,-187.78618265,0.0001589,2]
[334822587,1723603956956,-1609.88,0.0001589,2]
[334822588,1723603956966,-500.0,0.0001589,2]
[334822589,1723603956979,-500.0,0.0001589,2]
[334822590,1723603956989,-5273.3,0.0001589,2]
[334822591,1723603956999,-2545.62,0.0001589,2]
[334822592,1723603957009,-568.81,0.0001589,2]
[334822593,1723603957019,-500.0,0.0001589,2]
[334822594,1723603957029,-500.0,0.0001589,2]
[334822595,1723603957039,-3500.04,0.0001589,2]
[334822596,1723603957049,-500.0,0.0001589,2]
[334822597,1723603957060,-500.0,0.0001589,2]
[334822598,1723603957069,-500.0,0.0001589,2]
[334822599,1723603957078,-511.03009873,0.0001589,2]
[334822600,1723603957088,-1877.03,0.0001589,2]
[334822601,1723603957098,-500.0,0.0001589,2]
[334822602,1723603957108,-500.0,0.0001589,2]
[334822603,1723603957118,-1389.67,0.0001589,2]
[334822604,1723603957127,-615.8,0.0001589,2]
[334822605,1723603957137,-1434.03,0.0001589,2]
[334822606,1723603957147,-3154.71,0.0001589,2]
[334822607,1723603957161,-623.26,0.0001589,2]
[334822608,1723603957172,-523.16,0.0001589,2]
[334822609,1723603957182,-500.0,0.0001589,2]
[334822610,1723603957192,-500.0,0.0001589,2]
[334822611,1723603957201,-500.0,0.0001589,2]
[334822612,1723603957211,-500.0,0.0001589,2]
[334822613,1723603957221,-500.0,0.0001589,2]
[334822614,1723603957231,-641.69,0.0001589,2]
[334822615,1723603957241,-500.0,0.0001589,2]
[334822616,1723603957251,-628.56917686,0.0001589,2]
[334822617,1723603957260,-500.0,0.0001589,2]
[334822618,1723603957270,-500.0,0.0001589,2]
[334822619,1723603957280,-908.77,0.0001589,2]
[334822620,1723603957290,-500.0,0.0001589,2]
[334822621,1723603957301,-500.0,0.0001589,2]
[334822622,1723603957311,-1000.0,0.0001589,2]
[334822623,1723603957322,-811.21,0.0001589,2]
[334822624,1723603957333,-500.0,0.0001589,2]
[334822625,1723603957342,-500.0,0.0001589,2]
[334822626,1723603957353,-500.0,0.0001589,2]
[334822627,1723603957362,-577.33,0.0001589,2]
[334822628,1723603957372,-500.0,0.0001589,2]
[334822629,1723603957381,-1761.26,0.0001589,2]
[334822630,1723603957391,-1716.91,0.0001589,2]
[334822631,1723603957400,-527.5,0.0001589,2]
[334822632,1723603957410,-613.43,0.0001589,2]
[334822633,1723603957421,-1089.5,0.0001589,2]
[334822634,1723603957430,-513.54595566,0.0001589,2]
[334822635,1723603957440,-728.17,0.0001589,2]
[334822636,1723603957450,-184.48702229,0.0001589,2]
[334822637,1723603957460,-664.03,0.0001589,2]
[334822638,1723603957471,-500.0,0.0001589,2]
[334822639,1723603957481,-500.0,0.0001589,2]
[334822640,1723603957491,-1090.52,0.0001589,2]
[334822641,1723603957501,-545.68,0.0001589,2]
[334822642,1723603957512,-2011.47,0.0001589,2]
[334822643,1723603957522,-550.26,0.0001589,2]
[334822644,1723603957532,-1554.81,0.0001589,2]
[334822645,1723603957542,-502.14,0.0001589,2]
[334822646,1723603957552,-500.0,0.0001589,2]
[334822647,1723603957562,-563.85,0.0001589,2]
[334822648,1723603957571,-921.71,0.0001589,2]
[334822649,1723603957582,-823.6,0.0001589,2]
[334822650,1723603957591,-640.9939702,0.0001589,2]
[334822651,1723603957601,-500.0,0.0001589,2]
[334822652,1723603957611,-610.78,0.0001589,2]
[334822653,1723603957621,-222.74581765,0.0001589,2]
[334822654,1723603957631,-1908.57,0.0001589,2]
[334822655,1723603957641,-511.56,0.0001589,2]
[334822656,1723603957650,-834.86,0.0001589,2]
[334822657,1723603957660,-500.0,0.0001589,2]
[334822658,1723603957669,-500.0,0.0001589,2]
[334822659,1723603957679,-500.0,0.0001589,2]
[334822660,1723603957689,-500.0,0.0001589,2]
[334822661,1723603957699,-500.0,0.0001589,2]
[334822662,1723603957709,-626.84,0.0001589,2]
[334822663,1723603957719,-500.0,0.0001589,2]
[334822664,1723603957728,-1747.03,0.0001589,2]
[334822665,1723603957738,-500.0,0.0001589,2]
[334822666,1723603957748,-1408.06,0.0001589,2]
[334822667,1723603957758,-500.0,0.0001589,2]
[334822668,1723603957767,-754.97,0.0001589,2]
[334822669,1723603957777,-857.47,0.0001589,2]
[334822670,1723603957786,-500.0,0.0001589,2]
[334822671,1723603957796,-500.0,0.0001589,2]
[334822672,1723603957806,-500.0,0.0001589,2]
[334822673,1723603957816,-500.0,0.0001589,2]
[334822674,1723603957826,-1367.58,0.0001589,2]
[334822675,1723603957836,-681.21,0.0001589,2]
[334822676,1723603957845,-2349.72,0.0001589,2]
[334822677,1723603957856,-1319.2,0.0001589,2]
[334822678,1723603957865,-688.34,0.0001589,2]
[334822679,1723603957875,-500.0,0.0001589,2]
[334822680,1723603957885,-695.72,0.0001589,2]
[334822681,1723603957895,-895.36,0.0001589,2]
[334822682,1723603957904,-500.0,0.0001589,2]
[334822683,1723603957914,-500.0,0.0001589,2]
[334822684,1723603957924,-683.22,0.0001589,2]
[334822685,1723603957934,-964.08,0.0001589,2]
[334822686,1723603957943,-502.68246805,0.0001589,2]
[334822687,1723603957953,-500.0,0.0001589,2]
[334822688,1723603957963,-373.68499429,0.0001589,2]
[334822689,1723603957974,-500.0,0.0001589,2]
[334822690,1723603957984,-500.0,0.0001589,2]
[334822691,1723603957994,-1380.66,0.0001589,2]
[334822692,1723603958004,-500.0,0.0001589,2]
[334822693,1723603958015,-2027.17,0.0001589,2]
[334822694,1723603958024,-11342.33,0.0001589,2]
[334822695,1723603958034,-1367.54,0.0001589,2]
[334822696,1723603958044,-399.10099076,0.0001589,2]
[334822697,1723603958057,-500.0,0.0001589,2]
[334822698,1723603958067,-500.0,0.0001589,2]
[334822699,1723603958077,-500.0,0.0001589,2]
[334822700,1723603958086,-1444.2,0.0001589,2]
[334822701,1723603958096,-500.0,0.0001589,2]
[334822702,1723603958107,-500.0,0.0001589,2]
[334822703,1723603958116,-4005.49,0.0001589,2]
[334822704,1723603958126,-500.0,0.0001589,2]
[334822705,1723603958137,-500.0,0.0001589,2]
[334822706,1723603958147,-8599.7,0.0001589,2]
[334822707,1723603958157,-3471.08,0.0001589,2]
[334822708,1723603958167,-500.0,0.0001589,2]
[334822709,1723603958178,-500.0,0.0001589,2]
[334822710,1723603958187,-18529.58,0.0001589,2]
[334822711,1723603958197,-1467.23,0.0001589,2]
[334822712,1723603958207,-500.0,0.0001589,2]
[334822713,1723603958217,-1447.84,0.0001589,2]
[334822714,1723603958228,-1090.94,0.0001589,2]
[334822715,1723603958237,-500.0,0.0001589,2]
[334822716,1723603958247,-696.39,0.0001589,2]
[334822717,1723603958256,-3340.88,0.0001589,2]
[334822718,1723603958266,-500.0,0.0001589,2]
[334822719,1723603958276,-500.0,0.0001589,2]
[334822720,1723603958286,-500.0,0.0001589,2]
[334822721,1723603958296,-500.0,0.0001589,2]
[334822722,1723603958308,-500.0,0.0001589,2]
[334822723,1723603958320,-789.84,0.0001589,2]
[334822724,1723603958330,-501.50337838,0.0001589,2]
[334822725,1723603958341,-1932.0,0.0001589,2]
[334822726,1723603958351,-16984.73,0.0001589,2]
[334822727,1723603958362,-1408.21,0.0001589,2]
[334822728,1723603958371,-500.0,0.0001589,2]
[334822729,1723603958381,-3491.45,0.0001589,2]
[334822730,1723603958390,-500.0,0.0001589,2]
[334822731,1723603958400,-615.57,0.0001589,2]
[334822732,1723603958410,-500.0,0.0001589,2]
[334822733,1723603958422,-4811.5,0.0001589,2]
[334822734,1723603958431,-1049.0,0.0001589,2]
[334822735,1723603958441,-1741.08,0.0001589,2]
[334822736,1723603958450,-3462.69,0.0001589,2]
[334822737,1723603958460,-1076.68,0.0001589,2]
[334822738,1723603958470,-760.25,0.0001589,2]
[334822739,1723603958479,-547.29,0.0001589,2]
[334822740,1723603958489,-500.0,0.0001589,2]
[334822741,1723603958498,-500.0,0.0001589,2]
[334822742,1723603958507,-1201.41,0.0001589,2]
[334822743,1723603958517,-9705.83,0.0001589,2]
[334822744,1723603958526,-500.0,0.0001589,2]
[334822745,1723603958535,-500.0,0.0001589,2]
[334822746,1723603958545,-500.0,0.0001589,2]
[334822747,1723603958555,-500.0,0.0001589,2]
[334822748,1723603958564,-500.0,0.0001589,2]
[334822749,1723603958574,-682.35,0.0001589,2]
[334822750,1723603958584,-21824.02,0.0001589,2]
[334822751,1723603958593,-500.0,0.0001589,2]
[334822752,1723603958603,-964.16,0.0001589,2]
[334822753,1723603958612,-728.58,0.0001589,2]
[334822754,1723603958622,-2013.72,0.0001589,2]
[334822755,1723603958631,-1369.46,0.0001589,2]
[334822756,1723603958641,-832.56,0.0001589,2]
[334822757,1723603958650,-2899.28,0.0001589,2]
[334822758,1723603958659,-4067.6,0.0001589,2]
[334822759,1723603958669,-953.43,0.0001589,2]
[334822760,1723603958679,-1756.12,0.0001589,2]
[334822761,1723603958689,-500.0,0.0001589,2]
[334822762,1723603958698,-664.79,0.0001589,2]
[334822763,1723603958707,-500.0,0.0001589,2]
[334822764,1723603958717,-658.27,0.0001589,2]
[334822765,1723603958727,-500.0,0.0001589,2]
[334822766,1723603958736,-1097.99,0.0001589,2]
[334822767,1723603958746,-547.57,0.0001589,2]
[334822768,1723603958755,-1115.22,0.0001589,2]
[334822769,1723603958765,-767.26,0.0001589,2]
[334822770,1723603958774,-1272.25,0.0001589,2]
[334822771,1723603958784,-500.0,0.0001589,2]
[334822772,1723603958793,-531.71,0.0001589,2]
[334822773,1723603958803,-723.33,0.0001589,2]
[334822774,1723603958813,-3348.83,0.0001589,2]
[334822775,1723603958822,-1223.52,0.0001589,2]
[334822776,1723603958832,-504.70486063,0.0001589,2]
[334822777,1723603958841,-2161.17,0.0001589,2]
[334822778,1723603958851,-500.0,0.0001589,2]
[334822779,1723603958861,-6910.51,0.0001589,2]
[334822780,1723603958870,-609.36,0.0001589,2]
[334822781,1723603958880,-880.05,0.0001589,2]
[334822782,1723603958889,-1173.02,0.0001589,2]
[334822783,1723603958898,-1181.05,0.0001589,2]
[334822784,1723603958908,-2224.37,0.0001589,2]
[334822785,1723603958918,-500.0,0.0001589,2]
[334822786,1723603958928,-500.0,0.0001589,2]
[334822787,1723603958938,-500.0,0.0001589,2]
[334822788,1723603958948,-725.28,0.0001589,2]
[334822789,1723603958957,-500.0,0.0001589,2]
[334822790,1723603958968,-500.0,0.0001589,2]
[334822791,1723603958981,-500.0,0.0001589,2]
[334822792,1723603958990,-3779.35,0.0001589,2]
[334822793,1723603959000,-9040.84,0.0001589,2]
[334822794,1723603959009,-1046.28,0.0001589,2]
[334822795,1723603959019,-1939.79,0.0001589,2]
[334822796,1723603959150,-1333.4,0.0001589,2]
[334822797,1723603959160,-1164.04,0.0001589,2]
[334822798,1723603959170,-767.18,0.0001589,2]
[334822799,1723603959180,-500.0,0.0001589,2]
[334822800,1723603959189,-507.54968475,0.0001589,2]
[334822801,1723603959198,-500.0,0.0001589,2]
[334822802,1723603959207,-500.0,0.0001589,2]
[334822803,1723603959217,-1701.51,0.0001589,2]
[334822804,1723603959226,-500.0,0.0001589,2]
[334822805,1723603959235,-1301.52,0.0001589,2]
[334822806,1723603959244,-6185.17,0.0001589,2]
[334822807,1723603959254,-500.0,0.0001589,2]
[334822808,1723603959262,-500.0,0.0001589,2]
[334822809,1723603959271,-400.0,0.0001589,2]
[334822810,1723603959281,-1318.76,0.0001589,2]
[334822811,1723603959290,-3208.28,0.0001589,2]
[334822812,1723603959300,-800.93,0.0001589,2]
[334822813,1723603959309,-500.0,0.0001589,2]
[334822814,1723603959318,-1811.7,0.0001589,2]
[334822815,1723603959327,-566.62,0.0001589,2]
[334822816,1723603959336,-3837.15,0.0001589,2]
[334822817,1723603959345,-1246.41,0.0001589,2]
[334822818,1723603959354,-500.0,0.0001589,2]
[334822819,1723603959363,-1088.88,0.0001589,2]
[334822820,1723603959372,-749.39,0.0001589,2]
[334822821,1723603959382,-3163.1,0.0001589,2]
[334822822,1723603959391,-265.06615623,0.0001589,2]
[334822823,1723603959401,-500.0,0.0001589,2]
[334822824,1723603959412,-3420.09,0.0001589,2]
[334822825,1723603959422,-6114.43,0.0001589,2]
[334822826,1723603959433,-63525.08,0.0001589,2]
[334822827,1723603959443,-2037.52,0.0001589,2]
[334822828,1723603959453,-622.28,0.0001589,2]
[334822829,1723603959463,-978.75,0.0001589,2]
[334822830,1723603959472,-500.0,0.0001589,2]
[334822831,1723603959481,-500.0,0.0001589,2]
[334822832,1723603959491,-500.0,0.0001589,2]
[334822833,1723603959500,-22338.65,0.0001589,2]
[334822834,1723603959510,-3038.65,0.0001589,2]
[334822835,1723603959519,-518.31,0.0001589,2]
[334822836,1723603959528,-500.0,0.0001589,2]
[334822837,1723603959538,-3343.58,0.0001589,2]
[334822838,1723603959547,-2760.28,0.0001589,2]
[334822839,1723603959557,-500.0,0.0001589,2]
[334822840,1723603959567,-1040.52,0.0001589,2]
[334822841,1723603959576,-3325.87,0.0001589,2]
[334822842,1723603959586,-1000.0,0.0001589,2]
[334822843,1723603959596,-1095.39,0.0001589,2]
[334822844,1723603959606,-773.26,0.0001589,2]
[334822845,1723603959615,-500.0,0.0001589,2]
[334822846,1723603959624,-8871.6,0.0001589,2]
[334822847,1723603959633,-4053.29,0.0001589,2]
[334822848,1723603959643,-500.0,0.0001589,2]
[334822849,1723603959653,-500.0,0.0001589,2]
[334822850,1723603959663,-1012.12,0.0001589,2]
[334822851,1723603959672,-1400.49,0.0001589,2]
[334822852,1723603959681,-504.29756771,0.0001589,2]
[334822853,1723603959691,-948.38,0.0001589,2]
[334822854,1723603959700,-1923.55,0.0001589,2]
[334822855,1723603959711,-574.76,0.0001589,2]
[334822856,1723603959721,-500.0,0.0001589,2]
[334822857,1723603959732,-756.47,0.0001589,2]
[334822858,1723603959743,-1806.66,0.0001589,2]
[334822859,1723603959753,-1028.89,0.0001589,2]
[334822860,1723603959762,-500.0,0.0001589,2]
[334822861,1723603959771,-5711.31,0.0001589,2]
[334822862,1723603959781,-500.0,0.0001589,2]
[334822863,1723603959790,-5949.67,0.0001589,2]
[334822864,1723603959799,-500.0,0.0001589,2]
[334822865,1723603959808,-2287.9,0.0001589,2]
[334822866,1723603959818,-500.0,0.0001589,2]
[334822867,1723603959827,-500.0,0.0001589,2]
[334822868,1723603959837,-500.0,0.0001589,2]